Cogmind - Beta 16 @@@ ROGUE MODE // 2026.02.01 @ 11:22:58 // Winter2019/RPGLIKE Player: Lava Result: Destroyed by G-47 Trooper with Particle Gun Performance ------------- Evolutions (2) 1000 Regions Visited (5) 1000 Robots Destroyed (55) 275 Value Destroyed (1685) 1685 Prototype IDs (25) 500 Alien Tech Used (0) 0 Bonus (350) 350 TOTAL SCORE: 4810 Bonus ------- Follower Combat Kills 50 Aligned with FarCom 300 Cogmind --------- Core Integrity 0/600 Matter 279/300 Energy 150/160 System Corruption 0% Temperature Cool (68) Movement Walking (105) Location -8/Materials Parts ------- > --- POWER (1) -------- Light Nuclear Core > --- PROPULSION (2) --- Carbon-fiber Leg Carbon-fiber Leg > --- UTILITY (5) ------ Improved Signal Interpreter Terrain Scanner Melee Analysis Suite Utility Shielding Hacking Suite > --- WEAPON (3) ------- Heavy Assault Rifle Light Cannon Longsword +1 > --- INVENTORY (3) ---- Hacking Suite Improved Medium Laser Grenade Launcher Peak State ------------ > --- POWER ------------ Light Nuclear Core > --- PROPULSION ------- Carbon-fiber Leg Carbon-fiber Leg > --- UTILITY ---------- Improved Signal Interpreter Terrain Scanner Melee Analysis Suite Utility Shielding Hacking Suite > --- WEAPON ----------- Heavy Assault Rifle Light Cannon Longsword +1 > --- INVENTORY -------- Hacking Suite Improved Medium Laser Grenade Launcher [Rating: 31] Favorites ----------- Power Light Ion Engine Engine Light Ion Engine Power Core Light Nuclear Core Propulsion Light Treads Treads Light Treads Leg Carbon-fiber Leg Utility Utility Shielding Device Terrain Scanner Processor Signal Interpreter Hackware Hacking Suite Protection Utility Shielding Weapon Light Cannon Ballistic Gun Light Assault Rifle Ballistic Cannon Light Cannon Slashing Weapon Longsword +1 Build | -11 -10 -10 -10 -9 -8 ------- Run | Yrd Mat Min Exi Min Mat Slots Evolved 7 | 3 1 . 1 1 1 Power . | . . . . . . Propulsion 1 | 1 . . . . . Utility 4 | 1 1 . . 1 1 Weapon 2 | 1 . . 1 . . Parts Attached 19 | 4 6 . 1 1 7 Power 3 | 1 1 . . . 1 Engine 2 | 1 1 . . . . Core 1 | . . . . . 1 Reactor . | . . . . . . Propulsion 5 | 2 . . . . 3 Treads 3 | 2 . . . . 1 Leg 2 | . . . . . 2 Wheel . | . . . . . . Hover . | . . . . . . Flight . | . . . . . . Utility 6 | . 3 . . 1 2 Device 1 | . . . . . 1 Storage . | . . . . . . Processor 3 | . 1 . . 1 1 Hackware 1 | . 1 . . . . Protection 1 | . 1 . . . . Artifact . | . . . . . . Weapon 5 | 1 2 . 1 . 1 Energy Gun . | . . . . . . Energy Cannon . | . . . . . . Ballistic Gun 2 | 1 . . . . 1 Ballistic Cannon 2 | . 2 . . . . Launcher . | . . . . . . Special Weapon . | . . . . . . Impact Weapon . | . . . . . . Slashing Weapon 1 | . . . 1 . . Piercing Weapon . | . . . . . . Special Melee Weapon . | . . . . . . Unidentified Prototypes . | . . . . . . Parts Lost . | . . . . . . Power . | . . . . . . Propulsion . | . . . . . . Utility . | . . . . . . Weapon . | . . . . . . Highest Loss Streak . | . . . . . . To Critical Strikes . | . . . . . . Average Backups 2 | . 2 3 3 3 2 Power . | . . . . . . Propulsion . | . . . . . . Utility 1 | . 1 2 2 2 1 Weapon . | . . 1 1 1 1 Tool/Special . | . . . . . . Unused Backups 3 | . . . . . 3 Power . | . . . . . . Propulsion . | . . . . . . Utility 1 | . . . . . 1 Weapon 2 | . . . . . 2 Tool/Special . | . . . . . . Average Slot Usage (%) 99 | . 97 100 100 99 100 Engine 10 | . 13 12 11 10 5 Treads 22 | . 26 25 23 20 9 Leg 1 | . . . . . 8 Device 1 | . . . . . 8 Processor 14 | . 12 12 11 19 18 Hackware 8 | . 4 12 11 10 9 Protection 11 | . 12 12 11 10 9 Ballistic Gun 11 | . 13 12 11 10 9 Ballistic Cannon 11 | . 11 12 11 10 9 Slashing Weapon 4 | . . . 4 10 9 Peak Build Rating 31 | 4 10 10 18 21 31 Average Rating 14 | 3 7 10 13 20 27 On Entrance 10 | . 4 10 10 18 21 Avg Prop Armor Cover (%) 10 | . . . . . 10 Naked Turns . | . . . . . . Heaviest Build 16 | 4 8 8 11 11 16 Greatest Support 40 | 40 40 40 40 40 40 Greatest Overweight (x) 1 | 1 . . . . . Average Overweight (x) . | . . . . . . Largest Inventory Capacity 3 | 3 3 3 3 3 3 Average Capacity 2 | 2 3 3 3 3 3 Most Carried 3 | 1 3 3 3 3 3 Average Carried 2 | . 2 3 3 3 2 Final Capacity 3 | 3 3 3 3 3 3 Final Carried 3 | 1 3 3 3 3 3 Class Distribution -------------------- 62% | Mutant 27% | Assassin 10% | Scavenger-Assassin Dominant Class ---------------- Mutant | -10/Materials Mutant | -10/Mines Mutant | -10/Exiles Assassin | -9/Mines Scavenger-Assassin | -8/Materials Resources | -11 -10 -10 -10 -9 -8 ----------- Run | Yrd Mat Min Exi Min Mat Matter Collected 829 | 233 398 74 . 35 89 Remotely . | . . . . . . Salvage Created 1846 | . 602 100 . 339 805 Parts 109 | . 44 4 . 18 43 Haulers Intercepted 1 | . 1 . . . . Recyclers Shooed . | . . . . . . Parts Field Recycled . | . . . . . . Retrieved Matter . | . . . . . . Parts Self-Destructed . | . . . . . . Prevented . | . . . . . . Parts Restored . | . . . . . . Kills | -11 -10 -10 -10 -9 -8 ------- Run | Yrd Mat Min Exi Min Mat Combat Hostiles Destroyed 46 | . 21 3 . 9 13 Melee 22 | . . . . 9 13 Guns 9 | . 8 1 . . . Cannons 15 | . 13 2 . . . Classes Destroyed 11 | . 7 . . 1 3 Worker 1 | . . . . . 1 Hauler 1 | . 1 . . . . Recycler 1 | . 1 . . . . Operator 4 | . 3 . . . 1 Watcher 2 | . 1 . . . 1 Swarmer 12 | . 9 . . 3 . Grunt 25 | . 10 3 . 4 8 Duelist 2 | . . . . 2 . Sentry 4 | . . . . . 4 Hunter 1 | . . . . . 1 Subdweller 2 | . 2 . . . . Best Kill Streak 5 | . 3 2 . 4 5 Combat Bots Only 4 | . 3 2 . 4 4 Max Kills in Single Turn 1 | . 1 1 . 1 1 Gunslinging . | . . . . . . Exploded . | . . . . . . Melee 1 | . . . . 1 1 Uniques/NPCs Destroyed . | . . . . . . Combat | -11 -10 -10 -10 -9 -8 -------- Run | Yrd Mat Min Exi Min Mat Hostile Shots Fired 214 | . 81 13 . 27 93 Missed 64 | . 15 4 . 12 33 Hits 150 | . 66 9 . 15 60 Melee 1 | . . . . 1 . Projectile 149 | . 66 9 . 14 60 Critical Strikes 6 | . 1 . . . 5 Damage Taken 1824 | . 749 129 . 173 773 Core 1442 | . 588 107 . 130 617 Absorbed by Shields . | . . . . . . Redirected to Core 1232 | . 517 76 . 130 509 Redirected to Shielding 3 | . 3 . . . . Ignored by Resistances 115 | . . . . . 115 Core Remaining (%) 87 | 100 . . . 75 . Volleys Fired 90 | . 71 10 . 4 5 Largest 2 | . 2 2 . 2 2 Hottest 53 | . 50 50 . 50 53 Shots Fired 180 | . 142 20 . 8 10 Gun 90 | . 71 10 . 4 5 Cannon 90 | . 71 10 . 4 5 Launcher . | . . . . . . Special . | . . . . . . Kinetic 180 | . 142 20 . 8 10 Thermal . | . . . . . . Explosive . | . . . . . . Electromagnetic . | . . . . . . Robot Hit Streak 11 | . 11 6 . 4 6 Robot Miss Streak 3 | . 3 2 . 1 2 Penetration Max . | . . . . . . Secondary Targets . | . . . . . . Shots Hit Robots 166 | . 92 12 . 21 41 Core Hits 67 | . 37 6 . 9 15 Critical Kills 1 | . 1 . . . . Critical Parts Destroyed . | . . . . . . Critical Strikes 8 | . 2 1 . 2 3 Destroy 1 | . 1 . . . . Blast 2 | . 1 1 . . . Sever 5 | . . . . 2 3 Melee Attacks 57 | . . . . 20 37 Impact . | . . . . . . Slashing 57 | . . . . 20 37 Piercing . | . . . . . . Sneak Attacks 3 | . . . . . 3 Combat Hostiles 2 | . . . . . 2 Follow-up Attacks . | . . . . . . Damage Inflicted 3982 | . 1257 144 . 746 1835 Guns 478 | . 368 44 . 21 45 Cannons 1059 | . 889 100 . 36 34 Explosions . | . . . . . . Melee 2445 | . . . . 689 1756 Ramming . | . . . . . . Kinetic 1537 | . 1257 144 . 57 79 Thermal . | . . . . . . Explosive . | . . . . . . Electromagnetic . | . . . . . . Impact . | . . . . . . Slashing 2445 | . . . . 689 1756 Piercing . | . . . . . . Highest Corruption . | . . . . . . Average Corruption . | . . . . . . Corruption Purged . | . . . . . . Corruption Blocked . | . . . . . . Overload Shots . | . . . . . . Overflow Damage 109 | . 8 . . 43 58 Projectiles 8 | . 8 . . . . Explosions . | . . . . . . Melee 101 | . . . . 43 58 Knockbacks 14 | . 13 . . . 1 Impact . | . . . . . . Kinetic 14 | . 13 . . . 1 Secondary . | . . . . . . Self-Inflicted Damage . | . . . . . . Shots . | . . . . . . Rammed . | . . . . . . Targets Rammed . | . . . . . . Kicked . | . . . . . . Crushed . | . . . . . . Highest Temperature 59 | . 34 53 . 10 59 Average Temperature 12 | . 10 22 . 7 22 Received Heat Transfer 792 | . 231 75 . 45 441 Siege Activations . | . . . . . . Martial Activations . | . . . . . . Shielding Activations . | . . . . . . Robots Disrupted . | . . . . . . Combat Hostiles . | . . . . . . Robots Corrupted . | . . . . . . Combat Hostiles . | . . . . . . Parts Fried . | . . . . . . Impact Corruptions . | . . . . . . Robots Melted . | . . . . . . Combat Hostiles . | . . . . . . Parts Melted . | . . . . . . Heat Transferred . | . . . . . . Parts Sabotaged . | . . . . . . Parts Stolen . | . . . . . . Parts Stripped . | . . . . . . Power Chain Reactions . | . . . . . . Alert | -11 -10 -10 -10 -9 -8 ------- Run | Yrd Mat Min Exi Min Mat Maximum Alert Level . | . . . . . . Low Security (%) 100 | 100 100 100 . 100 100 Level 1 . | . . . . . . Level 2 . | . . . . . . Level 3 . | . . . . . . Level 4 . | . . . . . . Level 5 . | . . . . . . High Security . | . . . . . . Max Security . | . . . . . . Peak Influence 173 | . 173 55 . 125 146 Initial 31 | . . 31 . . . Average 41 | . 65 8 . 30 53 Influence Increases 1290 | . 509 110 . 286 385 Destroy 0b10 Robot/C 920 | . 380 80 . 200 260 Destroy 0b10 Robot/NC 45 | . 30 . . . 15 Destroy Leader 226 | . 84 20 . 40 82 Allied During Kill 11 | . . 10 . 1 . Successful Hack 24 | . 12 . . . 12 Disable Machine 30 | . . . . 15 15 Destroy Structure 4 | . 3 . . . 1 Lose Combat Pursuer 30 | . . . . 30 . Influence Decreases 1122 | . 427 192 . 286 217 Entered New Map 51 | . . 51 . . . Time Decay 1016 | . 383 141 . 275 217 Lost Ally 11 | . . . . 11 . Purge Threat 44 | . 44 . . . . Squads Dispatched 6 | . 4 . . . 2 Investigation 4 | . 3 . . . 1 Extermination . | . . . . . . Reinforcement 2 | . 1 . . . 1 Assault . | . . . . . . Garrison . | . . . . . . Intercept . | . . . . . . Searches Triggered . | . . . . . . Construction Impeded . | . . . . . . Haulers Reinforced . | . . . . . . Active Scanning Responses . | . . . . . . Cargo Convoy Interrupts . | . . . . . . Stealth | -11 -10 -10 -10 -9 -8 --------- Run | Yrd Mat Min Exi Min Mat Distress Signals 4 | . 2 . . . 2 Communications Jammed . | . . . . . . Distress Signals . | . . . . . . Times Spotted 72 | . 34 4 . 12 22 Peak Tracking Total 7 | . 4 2 . 4 7 Tactical Retreats 3 | . 1 . . 2 . Traps | -11 -10 -10 -10 -9 -8 ------- Run | Yrd Mat Min Exi Min Mat Traps Triggered 1 | . 1 . . . . Indirectly . | . . . . . . Trap Hack Attempts . | . . . . . . Triggered . | . . . . . . Disarmed . | . . . . . . Reprogrammed . | . . . . . . Reused . | . . . . . . Traps Extracted . | . . . . . . Installed . | . . . . . . Triggered . | . . . . . . Machines | -11 -10 -10 -10 -9 -8 ---------- Run | Yrd Mat Min Exi Min Mat Machines Disabled 2 | . . . . 1 1 Max in Single Turn 1 | . . . . 1 1 Machines Repaired . | . . . . . . Machines Dismantled . | . . . . . . Machines Sabotaged . | . . . . . . Overloaded Fab Kills . | . . . . . . Hacking | -11 -10 -10 -10 -9 -8 --------- Run | Yrd Mat Min Exi Min Mat Machines Accessed 12 | . 8 . 1 . 3 Terminals 9 | . 7 . . . 2 Fabricators . | . . . . . . Repair Stations . | . . . . . . Recycling Units 1 | . 1 . . . . Scanalyzers 1 | . . . . . 1 Garrison Access . | . . . . . . Total Hacks 34 | . 21 . 1 . 12 Successful 22 | . 13 . 1 . 8 Failed 12 | . 8 . . . 4 Catastrophic 1 | . 1 . . . . Database Lockouts . | . . . . . . Manual 18 | . 10 . 1 . 7 Terminals 26 | . 19 . . . 7 Fabricators . | . . . . . . Repair Stations . | . . . . . . Recycling Units 2 | . 2 . . . . Scanalyzers 5 | . . . . . 5 Garrison Access . | . . . . . . Terminal Hacks 12 | . 9 . 1 . 2 Prototype ID Bank 1 | . 1 . . . . Branch Access Points 1 | . 1 . . . . Terminal Index 2 | . 1 . . . 1 Alert Level 2 | . 2 . . . . Unreport Threat 1 | . 1 . . . . Dispatch Records 2 | . 1 . . . 1 Surveillance Status 2 | . 2 . . . . Proto ID Catalog 1 | . . . 1 . . Fabricator Hacks . | . . . . . . Repair Station Hacks . | . . . . . . Recycling Unit Hacks 1 | . 1 . . . . Report Inventory 1 | . 1 . . . . Scanalyzer 5 | . . . . . 5 Retrieve Study 5 | . . . . . 5 Garrison Access Hacks . | . . . . . . Unauthorized Hacks 4 | . 3 . . . 1 Terminals 3 | . 2 . . . 1 Botnet 3 | . 2 . . . 1 Fabricators . | . . . . . . Repair Stations . | . . . . . . Recycling Units 1 | . 1 . . . . Monitor 1 | . 1 . . . . Scanalyzers . | . . . . . . Garrison Access . | . . . . . . Data Cores Recovered 1 | . 1 . . . . Used 1 | . 1 . . . . Hacking Detections 9 | . 7 . . . 2 Full Trace Events 2 | . 1 . . . 1 Feedback Events . | . . . . . . Feedback Blocked . | . . . . . . Robot Schematics Acquired . | . . . . . . Robots Built . | . . . . . . Authchips . | . . . . . . Time . | . . . . . . Total Robot Build Rating . | . . . . . . Part Schematics Acquired . | . . . . . . Parts Built . | . . . . . . Authchips . | . . . . . . Time . | . . . . . . Total Part Build Rating . | . . . . . . Part Studies Acquired 5 | . . . . . 5 Parts Repaired . | . . . . . . Time . | . . . . . . Parts Recycled . | . . . . . . Recycled Matter . | . . . . . . Retrieved Matter . | . . . . . . Retrieved Components . | . . . . . . Parts Scanalyzed . | . . . . . . Part Schematics Acquired . | . . . . . . Parts Damaged . | . . . . . . Bothacking | -11 -10 -10 -10 -9 -8 ------------ Run | Yrd Mat Min Exi Min Mat Used RIF Installer . | . . . . . . Robots Hacked . | . . . . . . Non-combat . | . . . . . . Combat . | . . . . . . Robot Hacks Applied . | . . . . . . Relay Couplers Released . | . . . . . . Fabnet Peak Effective % . | . . . . . . Robots Rewired . | . . . . . . Allies Hacked . | . . . . . . Hacks Repelled . | . . . . . . Allies | -11 -10 -10 -10 -9 -8 -------- Run | Yrd Mat Min Exi Min Mat Total Allies 3 | . . 3 . . . Largest Group 3 | . . 3 2 2 . Highest-Rated Group 40 | . . 40 24 24 . Highest-Rated Ally 16 | . . 16 16 16 . Total Orders . | . . . . . . Ally Attacks 19 | . . 5 . 14 . Total Damage 151 | . . 44 . 107 . Kills 2 | . . 1 . 1 . Allies Corrupted . | . . . . . . Allies Melted . | . . . . . . Intel | -11 -10 -10 -10 -9 -8 ------- Run | Yrd Mat Min Exi Min Mat Active Infowar (turns) 565 | . . . . . 565 Terrain 565 | . . . . . 565 Robot Analysis Total . | . . . . . . Derelict Logs Recovered 2 | . . 1 . 1 . Drone Launches . | . . . . . . Drone Recoveries . | . . . . . . Exploration | -11 -10 -10 -10 -9 -8 ------------- Run | Yrd Mat Min Exi Min Mat Turns Passed 4241 | 51 1391 877 336 1009 577 Spaces Moved 2299 | 36 666 519 210 558 310 Core 14 | 14 . . . . . Treads 2121 | 22 666 519 210 558 146 Legs 164 | . . . . . 164 Wheels . | . . . . . . Hover . | . . . . . . Flight . | . . . . . . Fastest Speed 50 | 50 160 160 160 160 105 Average Speed 155 | 124 160 160 160 160 133 Slowest Speed 160 | 160 160 160 160 160 160 Overloaded Moves . | . . . . . . Propulsion Burnouts . | . . . . . . Robots Hopped . | . . . . . . Potential Cave-ins . | . . . . . . Cave-ins Triggered . | . . . . . . Exploration Rate (%) 61 | 3 99 81 60 99 26 Regions Visited 5 Branch Regions 3 Pre-discovered Areas 1 | . . 1 . . . Known Exits Taken 4 | . 1 1 1 1 . Unknown Exits Taken 1 | 1 . . . . . Scrap Searched 1 | . . . . 1 . Spaces Dug 1 | . . . . . 1 Terrain Destroyed 1 | . . . . . 1 Melee 1 | . . . . . 1 Projectile . | . . . . . . AOE . | . . . . . . Terrain Rammed . | . . . . . . Walls Destroyed . | . . . . . . Machines Disabled . | . . . . . . Actions | -11 -10 -10 -10 -9 -8 --------- Run | Yrd Mat Min Exi Min Mat Total 2740 | 41 864 548 210 647 430 Wait 225 | . 94 14 . 59 58 Move 2294 | 35 665 518 209 557 310 Hop . | . . . . . . Pick Up 10 | 2 7 . . . 1 Fast Attach 7 | 3 . . 1 1 2 Attach 6 | 1 4 . . . 1 Detach . | . . . . . . Swap 6 | . 2 . . . 4 Drop 7 | . 2 . . . 5 Fire 90 | . 71 10 . 4 5 Melee 57 | . . . . 20 37 Ram . | . . . . . . Kick . | . . . . . . Crush . | . . . . . . Escape Stasis . | . . . . . . Rewire . | . . . . . . Trap . | . . . . . . Miscellaneous 38 | . 19 6 . 6 7 Route ------- -11/Scrapyard -10/Materials (discovered 6 exits: *Mat x3 / *Min x2 / *Sub) -10/Mines (discovered 4 exits: *Mat x2 / *Exi / *Sub) -10/Exiles -9/Mines (discovered 2 exits: *Mat x2) -8/Materials (discovered 3 exits: Fac x3) History --------- Turn | Location | Event 12 | -11/Scrapyard | Discovered new exit (range 15) 17 | -11/Scrapyard | Upgraded with Propulsion slot (x1) 17 | -11/Scrapyard | Upgraded with Utility slot (x1) 17 | -11/Scrapyard | Upgraded with Weapon slot (x1) 52 | -11/Scrapyard | Entered Materials 127 | -10/Materials | Discovered new exit (range 4) 132 | -10/Materials | Identified exit to Subcaves 308 | -10/Materials | Build established: Mutant 373 | -10/Materials | Discovered new exit (range 15) 552 | -10/Materials | Derelicts attacked the area 670 | -10/Materials | Discovered new exit (range 12) 694 | -10/Materials | Identified exit to Mines 817 | -10/Materials | Discovered new exit (range 14) 829 | -10/Materials | Reached level 2 915 | -10/Materials | Upgraded with Utility slot (x1) 1180 | -10/Materials | Discovered exit to Mines (range 8) 1332 | -10/Materials | Discovered new exit (range 13) 1360 | -10/Materials | Identified exit to Materials 1443 | -10/Materials | Entered Mines 1464 | -10/Mines | Learned location of 1 exit from Materials 1477 | -10/Mines | Assisted by bots powering up and referring to "LRC-V3" 1540 | -10/Mines | Reached level 3 1591 | -10/Mines | Discovered exit to Subcaves (range 6) 1713 | -10/Mines | Learned location of Storage (-9) 1747 | -10/Mines | Deemed a non-threat by the Exiles lab entrance 1747 | -10/Mines | Discovered new exit (range 5) 1752 | -10/Mines | Identified exit to Exiles 1854 | -10/Mines | Discovered exit to Materials (range 11) 1922 | -10/Mines | Discovered exit to Materials (range 12) 2147 | -10/Mines | Assembled infested the area 2320 | -10/Mines | Entered Exiles 2320 | -10/Exiles | Accompanied by 2 allies 2359 | -10/Exiles | Met 8R-AWN 2383 | -10/Exiles | Met EX-HEX 2436 | -10/Exiles | Met EX-BIN 2455 | -10/Exiles | Aligned with FarCom system 2456 | -10/Exiles | Given EX-Vault access code 2493 | -10/Exiles | Opened EX-Vault 2503 | -10/Exiles | Upgraded with Weapon slot (x1) 2503 | -10/Exiles | Found Longsword +1 2540 | -10/Exiles | Warned to stay clear of 0b10 Research branches 2581 | -10/Exiles | Met EX-DEC 2636 | -10/Exiles | Discovered new exit (range 14) 2655 | -10/Exiles | Identified exit to Mines 2656 | -10/Exiles | Left Exiles lab with Longsword +1 2656 | -10/Exiles | Entered Mines 2656 | -9/Mines | Accompanied by 2 allies 2716 | -9/Mines | Reached level 4 2732 | -9/Mines | Upgraded with Utility slot (x1) 2798 | -9/Mines | Discovered new exit (range 5) 2806 | -9/Mines | Identified exit to Materials 2951 | -9/Mines | Build established: Assassin 3247 | -9/Mines | Discovered exit to Materials (range 12) 3488 | -9/Mines | Learned location of 2 exits from Materials 3665 | -9/Mines | Entered Materials 3666 | -8/Materials | Identified exit to Factory 3667 | -8/Materials | Reached level 5 3677 | -8/Materials | Upgraded with Utility slot (x1) 3936 | -8/Materials | Core integrity fell below 50% 3937 | -8/Materials | Reached level 6 4121 | -8/Materials | Build established: Scavenger-Assassin 4235 | -8/Materials | Core integrity fell below 20% 4242 | -8/Materials | Destroyed by G-47 Trooper with Particle Gun Last Messages --------------- 04214_ K-01 Serf collects debris. 04216_ Penetrated by Slug. 04217_ Electrolysis Chamber disabled. 04217_ K-01 Serf collects debris. 04219_ H-55 Commando destroyed. 04219_ K-01 Serf destroyed. 04220_ U-05 Engineer builds a Door. 04220_ R-06 Scavenger collects Lgt. Ion Engine. 04223_ G-47 Trooper destroyed. 04223_ Slug penetrates Wall. 04228_ R-06 Scavenger collects Visual Processing Unit. 04230_ Slug penetrates Wall. 04231_ Wall collapses. 04231_ R-06 Scavenger collects Lgt. Deuterium Engine. 04233_ R-06 Scavenger destroyed. 04234_ Penetrated by Slug. 04237_ Critical hit (Burn: +37). 04237_ Penetrated by Slug. 04238_ H-55 Commando knocked back. 04242_ G-47 Trooper destroyed. Map ----- +----------------------------------------------------+ | ?????????????????????????????????????????????????? | | ?????????????????????????????????????????????????? | | ?????????????????????????????????????????????????? | | ?????????????????????????????????????????????????? | | ?????????????????????????????????????????????????? | | ???